bitfinex-derivatives/quotes_ETHF0:USTF0_20250125
["timestamp","ask_amount","ask_price","bid_price","bid_amount"]
[1737821060514,0.4916,3337.6,3337.5,0.47942]
[1737821061013,3.21229917,3337.7,3337.6,0.47941]
[1737821061818,0.00449917,3337.7,3337.6,0.47941]
[1737821066640,0.00449917,3337.7,3337.6,2.75784161]
[1737821068742,0.00449917,3337.7,3337.6,43.55784161]
[1737821069132,0.983,3338.4,3337.6,43.9054335]
[1737821069334,0.983,3338.4,3338.2,0.47931]
[1737821069840,0.47931,3338.3,3338.1,2.27843161]
[1737821070038,0.47932,3338.2,3338.1,2.27843161]
[1737821070238,0.47932,3338.2,3337.9,3.2078]
[1737821070239,0.47935,3338.0,3337.9,3.2078]
[1737821070542,0.5037,3338.4,3337.9,3.2078]
[1737821070737,0.5037,3338.4,3338.0,0.47935]
[1737821070943,0.5142,3338.5,3338.1,2.27843161]
[1737821071145,0.99349,3338.5,3338.3,0.4793]
[1737821071338,0.5142,3338.5,3338.4,2.75772161]
[1737821072456,0.508,3338.7,3338.4,2.27843161]
[1737821072744,0.508,3338.7,3338.6,0.47926]
[1737821073247,0.98725,3338.7,3338.5,0.47926]
[1737821073644,0.98725,3338.7,3338.6,0.34834271]
[1737821073951,0.98725,3338.7,3338.5,0.47926]
[1737821074136,0.508,3338.7,3338.4,2.27843161]
[1737821074342,0.98726,3338.7,3338.5,0.82751694]
[1737821074644,0.98726,3338.7,3338.5,0.47928]
[1737821074851,0.508,3338.7,3338.4,2.27843161]
[1737821075041,0.47923,3338.9,3338.7,0.47924]
[1737821075239,0.47923,3338.9,3338.8,2.27843161]
[1737821075635,0.47923,3338.9,3338.8,2.75766161]
[1737821076243,0.484,3339.0,3338.8,2.75766161]
[1737821076542,0.47922,3338.9,3338.8,2.75766161]
[1737821077950,0.484,3339.0,3338.8,2.27843161]
[1737821078443,0.484,3339.0,3338.9,1.31010808]
[1737821078845,0.497,3339.2,3338.9,0.83088808]
[1737821079045,0.97618,3339.2,3339.1,2.27843161]
[1737821079445,0.497,3339.2,3339.1,2.27843161]
[1737821079650,0.497,3339.2,3339.1,2.75762161]
[1737821079845,0.4746,3339.4,3339.1,2.27843161]
[1737821080051,0.4746,3339.4,3339.3,0.47916]
[1737821080451,0.4746,3339.4,3339.1,2.27843161]
[1737821080653,0.47916,3339.3,3339.1,2.75761161]
[1737821080846,0.4746,3339.4,3339.1,2.27843161]
[1737821081049,0.47922,3338.9,3338.8,2.78033161]
[1737821081350,0.47922,3338.9,3338.8,2.62610796]
[1737821081549,0.47921,3339.0,3338.8,3.10533796]
[1737821081746,0.47916,3339.3,3339.0,0.4792]
[1737821081950,0.47916,3339.3,3338.7,3.2122923]
[1737821081951,0.47916,3339.3,3339.1,2.27843161]
[1737821082138,0.4746,3339.4,3339.1,2.27843161]
[1737821082341,0.4746,3339.4,3339.3,0.47916]
[1737821083750,0.5156,3339.6,3339.2,4.2228]
[1737821083951,0.99472,3339.6,3339.5,2.27843161]
[1737821084545,0.99472,3339.6,3339.5,2.75756161]
[1737821084746,0.5156,3339.6,3339.5,2.75756161]
[1737821085146,0.4791,3339.8,3339.5,2.27843161]
[1737821085355,0.4791,3339.8,3339.7,0.4791]
[1737821085950,0.4749,3339.9,3339.5,2.27843161]
[1737821086150,0.95398,3339.9,3339.8,2.27843161]
[1737821088658,0.47913,3339.6,3339.5,2.27843161]
[1737821089452,0.4749,3339.9,3339.2,5.48623161]
[1737821089657,0.47916,3339.4,3339.2,5.96540161]
[1737821089956,0.4858,3339.3,3339.2,5.96540161]
[1737821090157,0.4858,3339.3,3339.2,6.31285438]
[1737821090659,0.4791,3339.8,3339.6,0.47911]
[1737821090952,0.4791,3339.8,3339.7,2.75753161]
[1737821091355,3.68688,3339.9,3339.7,2.27843161]
[1737821091662,0.47909,3339.8,3339.7,2.27843161]
[1737821092759,0.4962,3340.0,3339.9,0.47908]
[1737821093259,0.97526,3340.0,3339.9,0.47908]
[1737821093453,0.97526,3340.0,3339.7,2.27843161]
[1737821093454,0.4962,3340.0,3339.7,2.27843161]
[1737821093658,0.47908,3339.9,3339.8,0.82674864]
[1737821093862,0.47908,3339.9,3339.8,0.47909]
[1737821094060,0.47908,3339.9,3339.8,1.28456971]
[1737821094263,0.47908,3339.9,3339.8,0.47909]
[1737821094562,0.97527,3340.0,3339.8,0.82683561]
[1737821094765,0.97527,3340.0,3339.7,2.27843161]
[1737821094962,0.97527,3340.0,3339.9,0.47908]
[1737821095964,0.4962,3340.0,3339.7,2.27843161]
[1737821096162,0.97527,3340.0,3339.8,0.82690466]
[1737821096465,0.97527,3340.0,3339.9,0.47908]
[1737821098160,0.97527,3340.0,3339.9,0.82724286]
[1737821098463,0.97527,3340.0,3339.9,0.47908]
[1737821099060,0.97527,3340.0,3339.9,0.82724746]
[1737821100164,0.97527,3340.0,3339.9,0.34816746]
[1737821100467,0.97527,3340.0,3339.9,0.92332105]
[1737821100769,0.97527,3340.0,3339.9,1.87255924]
[1737821102064,0.97527,3340.0,3339.9,1.87247653]
[1737821102464,0.97527,3340.0,3339.9,1.39339653]
[1737821103273,0.97527,3340.0,3339.9,1.87247653]
[1737821104170,0.4858,3340.1,3339.9,1.39339653]
[1737821104474,0.5091,3340.4,3340.0,4.87441949]
[1737821104672,0.98811,3340.4,3340.3,2.75745161]
[1737821104873,0.98811,3340.4,3340.3,4.15084814]
[1737821105173,0.98811,3340.4,3340.3,3.67200468]
[1737821105567,0.98811,3340.4,3340.3,3.09672696]
[1737821105762,0.98811,3340.4,3340.3,3.67200137]
[1737821105967,0.98811,3340.4,3340.3,3.67210554]
[1737821106664,0.98811,3340.4,3340.3,3.09683365]
[1737821107970,0.98811,3340.4,3340.3,3.09084585]
[1737821109075,0.98811,3340.4,3340.3,3.09106522]
[1737821109569,0.98811,3340.4,3340.3,3.79998207]
[1737821109776,0.98811,3340.4,3340.3,3.21630872]
[1737821110270,0.98811,3340.4,3340.3,3.58109533]
[1737821110473,0.98811,3340.4,3340.3,3.21630872]
[1737821110776,0.98811,3340.4,3340.3,4.18481115]
[1737821111076,0.98811,3340.4,3340.3,4.65333429]
[1737821111670,0.5091,3340.4,3340.3,5.40248818]
[1737821111867,0.5091,3340.4,3340.3,6.15136184]
[1737821112175,3.68677,3340.7,3340.4,0.479]
[1737821112371,3.68677,3340.7,3340.6,2.75741161]
[1737821112580,3.68677,3340.7,3340.6,4.19471738]
[1737821112778,3.68677,3340.7,3340.6,3.71573738]
[1737821113172,3.68677,3340.7,3340.6,4.92346815]
[1737821113372,3.68677,3340.7,3340.6,5.40244815]
[1737821113771,3.68677,3340.7,3340.6,4.93440122]
[1737821113971,3.2078,3341.5,3341.4,0.47886]
[1737821114277,3.68665,3341.5,3341.4,3.13008347]
[1737821114466,3.68665,3341.5,3341.4,3.72593226]
[1737821114669,3.68665,3341.5,3341.4,4.18478937]
[1737821114874,3.68665,3341.5,3341.4,3.70592937]
[1737821115077,3.2078,3341.5,3341.4,4.18478937]
[1737821115380,0.47885,3341.5,3341.4,4.18447596]
[1737821115571,1.0134,3341.7,3341.6,0.47883]
[1737821115872,1.49222,3341.7,3341.6,0.96769588]
[1737821116073,1.49222,3341.7,3341.6,1.42655299]
[1737821116571,1.49222,3341.7,3341.6,1.90538299]
[1737821116775,1.49222,3341.7,3341.6,1.42655299]
[1737821116971,1.0134,3341.7,3341.6,1.9108771]
[1737821117382,1.0134,3341.7,3341.6,1.91087678]
[1737821117873,0.47881,3341.8,3341.6,1.45201967]
[1737821118078,3.2078,3341.9,3341.8,0.4788]
[1737821118376,0.47876,3342.2,3342.0,0.47877]
[1737821118577,0.47877,3342.1,3341.9,0.47878]
[1737821118877,0.4788,3341.8,3341.7,2.27843161]
[1737821119072,0.4788,3341.8,3341.7,3.40129502]
[1737821119279,0.506,3342.0,3341.7,4.0001555]
[1737821119479,0.98478,3342.0,3341.9,0.47879]
[1737821119674,0.98477,3342.0,3341.9,0.97314828]
[1737821119977,0.506,3342.0,3341.9,1.44098598]
[1737821120178,0.98477,3342.0,3341.9,1.44098598]
[1737821121173,0.98477,3342.0,3341.9,0.4678377]
[1737821121372,0.98477,3342.0,3341.9,0.84211485]
[1737821121578,0.98477,3342.0,3341.9,1.44095515]
[1737821122174,0.98477,3342.0,3341.9,0.84211485]
[1737821123179,0.98477,3342.0,3341.9,0.84211429]
[1737821123574,0.98477,3342.0,3341.9,0.37427659]
[1737821123875,1.47187,3342.0,3341.9,0.37427659]
[1737821125791,0.4788,3341.8,3341.7,2.27843161]
[1737821125980,0.4788,3341.8,3341.7,3.25159944]
[1737821126289,0.4788,3341.8,3341.7,3.12059624]
[1737821126584,0.4788,3341.8,3341.7,3.71946951]
[1737821127087,0.4788,3341.8,3341.7,2.65272693]
[1737821127285,0.4788,3341.8,3341.7,2.65272784]
[1737821129185,0.4788,3341.8,3341.7,2.65274183]
[1737821129384,5.04754335,3341.8,3341.1,2.28292391]
[1737821129687,0.47889,3341.2,3341.1,0.0044923]
[1737821129877,0.47889,3341.2,3341.1,0.97781206]
[1737821130082,0.47889,3341.2,3341.1,3.25624732]
[1737821130486,0.47889,3341.2,3341.1,3.72419395]
[1737821131692,1.43057,3341.4,3341.3,0.47887]
[1737821131993,1.43057,3341.4,3341.3,0.37435516]
[1737821132182,0.9517,3341.4,3341.3,0.3743502]
[1737821132493,1.43056,3341.4,3341.3,0.3743502]
[1737821132886,1.43056,3341.4,3341.3,0.8532202]
[1737821133188,1.43056,3341.4,3341.3,0.3743502]
[1737821133389,0.9517,3341.4,3341.3,0.97331119]
[1737821133694,0.9517,3341.4,3341.3,1.45218119]
[1737821133987,0.9517,3341.4,3341.3,0.97331119]
[1737821134293,1.43056,3341.4,3341.3,0.97331119]
[1737821134486,1.43056,3341.4,3341.3,0.3743502]
[1737821135191,1.43056,3341.4,3341.3,0.37437536]
[1737821135487,1.43056,3341.4,3341.3,0.97336438]
[1737821135989,1.43056,3341.4,3341.3,0.37437536]
[1737821136191,1.43056,3341.4,3341.3,0.97336709]
[1737821137084,0.9517,3341.4,3341.3,0.97335834]
[1737821137284,1.43056,3341.4,3341.3,0.97335834]
[1737821139093,1.43056,3341.4,3341.3,0.97336244]
[1737821141294,1.43056,3341.4,3341.3,1.44132361]
[1737821141895,1.43056,3341.4,3341.3,1.92019361]
[1737821142093,0.95606,3341.4,3341.3,2.6689045]
[1737821142502,0.95606,3341.4,3341.3,3.1698045]
[1737821142890,0.95606,3341.4,3341.3,2.6909345]
[1737821143092,0.95606,3341.4,3341.3,2.1899492]
[1737821143997,0.95606,3341.4,3341.3,2.93864996]
[1737821144198,0.95606,3341.4,3341.3,2.18995951]
[1737821144394,0.95606,3341.4,3341.3,2.17385268]
[1737821144592,0.95606,3341.4,3341.3,1.58481222]
[1737821144993,0.95606,3341.4,3341.3,1.42529861]
[1737821145193,0.95606,3341.4,3341.3,0.83611146]
[1737821146202,0.95606,3341.4,3341.3,1.4305868]
[1737821146400,0.95606,3341.4,3341.3,0.96262563]
[1737821147001,0.47889,3341.3,3341.2,0.47888]
[1737821147200,0.47889,3341.3,3341.2,1.44520978]
[1737821148801,0.47889,3341.3,3341.2,0.47888]
[1737821149105,0.47889,3341.3,3341.2,1.90745069]
[1737821150891,0.47889,3341.3,3341.2,1.90730516]
[1737821151601,0.95607,3341.4,3341.3,0.47887]
[1737821151801,0.95607,3341.4,3341.3,1.44478763]
[1737821152002,0.95607,3341.4,3341.3,1.92742516]
[1737821152500,0.95607,3341.4,3341.3,2.40629516]
[1737821152700,0.95607,3341.4,3341.3,1.92742516]
[1737821152999,0.95607,3341.4,3341.3,1.92762422]
[1737821153198,0.95607,3341.4,3341.3,2.6763407]
[1737821153793,0.95607,3341.4,3341.3,3.1552107]
[1737821153995,0.95607,3341.4,3341.3,2.6763407]
[1737821154991,0.47887,3341.4,3341.3,3.1552107]
[1737821155697,0.47887,3341.4,3341.3,2.6763407]
[1737821156705,0.47887,3341.4,3341.3,2.68354191]
[1737821156999,0.47887,3341.4,3341.3,2.18454191]
[1737821157200,0.47887,3341.4,3341.3,0.83686283]
[1737821157406,0.47889,3341.2,3341.1,0.0044923]
[1737821157604,0.52643953,3341.2,3341.1,0.0044923]
[1737821157797,0.52643953,3341.2,3340.5,0.9647]
[1737821157798,0.04754953,3341.2,3340.5,0.9647]
[1737821157999,0.47896,3340.7,3340.6,1.06521913]
[1737821158195,0.47896,3340.7,3340.6,0.59718062]
[1737821158602,3.2078,3340.8,3340.6,0.57622937]
[1737821158905,3.2078,3340.8,3340.5,0.9647]
[1737821158906,0.47898,3340.6,3340.5,0.9647]
[1737821159107,0.47898,3340.6,3340.5,1.54092952]
[1737821159305,0.47898,3340.6,3340.5,0.9647]
[1737821161303,0.47898,3340.6,3340.5,3.24313161]
[1737821161507,0.47898,3340.6,3340.5,3.72212161]
[1737821161907,0.47898,3340.6,3340.5,3.24313161]
[1737821162104,3.2078,3340.8,3340.5,3.24313161]
[1737821162306,3.2078,3340.8,3340.7,0.47896]
[1737821162506,3.2078,3340.8,3340.7,1.06235385]
[1737821162802,3.2078,3340.8,3340.7,0.58339385]
[1737821163000,3.2078,3340.8,3340.4,0.0044923]
[1737821163001,0.47899,3340.5,3340.4,0.0044923]
[1737821163197,0.52654483,3340.5,3340.4,0.0044923]
[1737821163507,0.52654483,3340.5,3339.1,1.19797]
[1737821163508,0.47928,3338.5,3338.1,5.13312456]
[1737821163804,3.2078,3338.8,3338.1,6.93222617]
[1737821164011,2.27843161,3338.3,3338.1,2.89862174]
[1737821164197,2.27843161,3338.3,3337.8,8.66536974]
[1737821164198,0.5,3338.2,3337.8,8.66536974]
[1737821164400,5.96559161,3337.9,3337.8,0.52444418]
[1737821164601,0.47938,3337.8,3337.6,10.0222429]
[1737821164800,0.966,3337.7,3337.3,14.26217463]
[1737821165004,7.76466322,3337.4,3336.7,4.69325329]
[1737821165203,5.966,3337.7,3336.7,4.69325329]
[1737821165204,5.96575161,3336.8,3336.7,4.69325329]
[1737821165400,1.19891,3336.6,3335.8,13.9613837]
[1737821165606,5.96588161,3335.9,3335.8,13.9613837]
[1737821165801,6.93288161,3335.9,3335.8,13.9613837]
[1737821166001,14.21131322,3335.9,3335.8,13.9613837]
[1737821166301,14.21131322,3335.9,3335.8,2.57421568]
[1737821166502,0.47966,3335.8,3335.7,6.32186983]
[1737821166704,3.68748,3335.7,3335.6,13.84902082]
[1737821166910,0.47971,3335.5,3335.4,15.78345057]
[1737821167107,0.47971,3335.5,3335.4,1.50252057]
[1737821167108,2.75814161,3335.5,3335.4,1.50252057]
[1737821167311,2.75814161,3335.5,3335.0,23.36081542]
[1737821167312,6.2088,3335.3,3335.0,18.69688516]
[1737821167507,8.03762322,3335.1,3335.0,16.85301516]
[1737821167811,3.46783059,3335.1,3335.0,12.64487516]
[1737821168011,8.46783059,3335.1,3335.0,4.69227555]
[1737821168214,8.70680148,3335.1,3335.0,2.81027555]
[1737821168611,0.52734732,3335.1,3335.0,1.11268711]
[1737821168808,1.50034732,3335.1,3335.0,1.11268711]
[1737821169113,0.976,3335.1,3335.0,1.11268711]
[1737821169314,0.976,3335.1,3334.7,0.0044923]
[1737821169707,0.47979,3335.0,3334.7,0.0044923]
[1737821169916,0.976,3335.1,3334.7,0.0044923]
[1737821170118,3.2078,3335.3,3334.9,5.81692687]
[1737821170304,0.976,3335.0,3334.7,0.0044923]
[1737821170510,3.2078,3335.3,3335.2,5.33714687]
[1737821170711,0.976,3335.3,3335.2,5.81688687]
[1737821170915,3.68742,3336.1,3335.3,0.47973]
[1737821171226,0.977,3336.0,3335.4,5.33714687]
[1737821171528,3.2078,3336.1,3335.5,0.4797]
[1737821171722,0.976,3335.9,3335.8,5.33714687]
[1737821171920,0.976,3335.9,3335.7,5.33714687]
[1737821172518,0.976,3335.9,3335.8,5.33714687]
[1737821172724,0.976,3335.9,3335.8,46.61680687]
[1737821172923,0.976,3335.9,3335.8,46.13714687]
[1737821173421,9.25515945,3336.0,3335.8,25.72256152]
[1737821173627,9.25515945,3336.0,3335.9,5.87679688]
[1737821173828,9.25515945,3336.0,3335.9,66.58255153]
[1737821174125,4.82115945,3336.0,3335.9,66.58255153]
[1737821174326,2.46495945,3336.0,3335.9,66.58255153]
[1737821174525,0.89415945,3336.0,3335.9,66.58255153]
[1737821174828,0.10865945,3336.0,3335.9,66.58255153]
[1737821175024,0.10865945,3336.0,3335.9,25.30290153]
[1737821175624,0.10865945,3336.0,3335.9,5.39714688]
[1737821176027,0.10865945,3336.0,3335.9,25.30290153]
[1737821176324,0.10865945,3336.0,3335.9,25.78255153]
[1737821176729,0.0044923,3336.2,3335.9,25.30290153]
[1737821177026,0.0044923,3336.2,3336.1,0.47962]
[1737821177425,0.0044923,3336.2,3336.1,19.96374229]
[1737821178017,0.0044923,3336.2,3336.1,23.17154229]
[1737821179929,0.0044923,3336.2,3336.1,15.07245863]
[1737821180119,0.0044923,3336.2,3336.1,15.55207863]
[1737821181032,6.74033775,3337.0,3336.9,0.47951]
[1737821181234,5.76233775,3337.0,3336.9,0.47951]
[1737821181428,5.76233775,3337.0,3336.9,1.96746838]
[1737821181732,0.978,3337.2,3337.0,0.47949]
[1737821181929,0.978,3337.2,3336.7,2.94048327]
[1737821182133,0.978,3337.2,3337.0,0.47948]
[1737821182331,0.978,3337.2,3336.8,0.0044923]
[1737821182834,0.978,3337.2,3337.1,0.47948]
[1737821183529,0.978,3337.2,3336.8,0.0044923]
[1737821183530,0.47949,3337.0,3336.8,0.0044923]
[1737821183729,3.2078,3336.9,3336.8,0.0044923]
[1737821184534,3.68731,3336.9,3336.8,0.0044923]
[1737821185238,3.2078,3336.9,3336.8,0.0044923]
[1737821186638,3.2078,3336.9,3336.2,2.94048327]
[1737821186837,0.47949,3337.1,3336.6,0.47954]
[1737821187135,3.2078,3336.7,3336.6,0.47954]
[1737821199643,0.47958,3336.4,3336.3,0.0044923]
[1737821200043,0.47958,3336.5,3336.3,0.4840823]
[1737821200445,0.5168,3336.6,3336.3,0.0044923]
[1737821200741,0.5168,3336.6,3336.5,0.47956]
[1737821202548,3.2078,3336.7,3336.3,0.0044923]
[1737821202749,0.00153504,3336.6,3336.5,3.42004327]
[1737821204047,0.00153504,3336.6,3336.5,2.99350483]
[1737821205248,0.00153504,3336.6,3336.5,3.4420573]
[1737821206448,0.00153504,3336.6,3336.5,2.99350483]
[1737821206850,0.00153504,3336.6,3336.5,7.99350483]
[1737821207344,5.04e-06,3336.6,3336.5,7.99350483]
[1737821207544,5.76233775,3337.1,3337.0,0.47949]
[1737821207745,5.76233775,3337.1,3337.0,6.62777327]
[1737821207936,0.0044923,3337.4,3337.3,0.47945]
[1737821208344,0.0044923,3337.4,3337.3,5.47945]
[1737821208940,0.0044923,3337.4,3337.3,0.47945]
[1737821209439,0.0044923,3337.4,3337.3,0.93646215]
[1737821210445,0.0044923,3337.4,3337.3,0.83109225]
[1737821210646,6.9148053,3337.5,3337.3,5.35164225]
[1737821210847,6.21067469,3337.5,3337.4,0.83107225]
[1737821211045,8.06727285,3337.7,3337.6,0.47941]
[1737821211346,8.06727285,3337.7,3337.6,0.83105225]
[1737821211553,3.2078,3337.8,3337.7,0.47939]
[1737821212452,3.2078,3337.8,3337.7,0.83048881]
[1737821213351,3.2078,3337.8,3337.7,0.47939]
[1737821217957,3.2078,3338.8,3337.7,3.2078]
[1737821218156,3.7302,3339.2,3338.1,3.2078]
[1737821218356,3.7302,3339.2,3338.8,0.47922]
[1737821218556,0.4792,3339.1,3338.3,2.94048327]
[1737821218858,0.4792,3339.1,3338.9,0.47922]
[1737821219160,0.4792,3339.1,3338.7,0.0044923]
[1737821219356,0.4792,3339.1,3338.9,0.47922]
[1737821220463,3.7302,3339.2,3338.9,0.47922]
[1737821220464,4.20938,3339.2,3338.9,0.47922]
[1737821220664,3.7302,3339.2,3338.7,0.0044923]
[1737821220861,3.7302,3339.2,3338.8,0.47923]
[1737821221267,12.60290835,3338.9,3338.8,0.47923]
[1737821221562,12.60290835,3338.9,3338.7,0.0044923]
[1737821221764,3.2078,3338.8,3338.1,0.47933]
[1737821222066,3.2078,3338.4,3337.5,2.94048327]
[1737821222274,3.2078,3338.0,3337.5,2.94048327]
[1737821222467,3.2078,3338.0,3337.9,0.47936]
[1737821225966,9.37741855,3338.2,3338.1,0.47933]
[1737821228663,3.2078,3338.8,3338.0,3.2078]
[1737821228664,7.03107392,3338.3,3338.0,3.2078]
[1737821228871,7.03107392,3338.3,3338.2,0.47932]
[1737821232563,0.4866,3339.0,3338.0,3.2078]
[1737821232564,9.37741855,3338.4,3338.0,3.2078]
[1737821232766,9.37741855,3338.4,3338.3,3.41979327]
[1737821233172,9.37741855,3338.4,3338.3,44.21979327]
[1737821233368,8.77551855,3338.4,3338.3,44.67074405]
[1737821234577,8.77551855,3338.4,3338.3,45.1261637]
[1737821234777,8.77551855,3338.4,3338.3,45.3696033]
[1737821234975,8.77551855,3338.4,3338.3,45.36960344]
[1737821235469,8.77551855,3338.4,3338.3,4.92417523]
[1737821235665,7.0228771,3338.4,3338.3,4.44511816]
[1737821235871,7.0228771,3338.4,3338.3,4.92442816]
[1737821236577,7.0228771,3338.4,3338.3,4.11418365]
[1737821238573,7.0228771,3338.4,3338.3,4.56217113]
[1737821240978,7.0228771,3338.4,3338.3,4.56223563]
[1737821241773,7.0228771,3338.4,3338.3,4.31879603]
[1737821242274,7.0228771,3338.4,3338.3,4.31879847]
[1737821242672,7.0228771,3338.4,3338.3,3.87074405]
[1737821243976,7.0228771,3338.4,3338.3,4.31886738]
[1737821244578,7.0228771,3338.4,3338.3,3.87074405]
[1737821246078,7.0228771,3338.4,3338.3,0.93026078]
[1737821246381,7.5002771,3338.4,3338.3,0.93026078]
[1737821246679,7.5002771,3338.4,3338.3,0.82902322]
[1737821246980,7.5002771,3338.4,3338.3,0.82902359]
[1737821247176,10.7080771,3338.4,3338.3,0.82902359]
[1737821247383,10.7080771,3338.4,3338.3,0.47931]
[1737821247586,11.1873771,3338.4,3338.2,0.47931]
[1737821247881,10.7080771,3338.4,3338.2,0.47931]
[1737821248081,10.7080771,3338.4,3338.0,3.2078]
[1737821248278,10.7080771,3338.4,3338.3,0.47931]
[1737821248882,7.5002771,3338.4,3338.3,0.47931]
[1737821249083,7.5002771,3338.4,3338.3,3.41979327]
[1737821249478,0.4774,3338.4,3338.3,3.41979327]
[1737821249679,0.4774,3338.4,3338.3,4.6373635]
[1737821249985,9.36324529,3338.7,3338.6,0.47926]
[1737821250682,9.36324529,3338.7,3338.6,0.94755624]
[1737821251683,9.36324529,3338.7,3338.6,1.40700051]
[1737821251884,9.36324529,3338.7,3338.6,0.94755624]
[1737821252386,9.36324529,3338.7,3338.6,4.15535624]
[1737821252581,9.36324529,3338.7,3338.6,4.61483013]
[1737821252787,9.36324529,3338.7,3338.6,4.15535624]
[1737821254386,9.36324529,3338.7,3338.6,9.15535624]
[1737821254581,9.36324529,3338.7,3338.6,4.15535624]
[1737821254785,9.36324529,3338.7,3338.6,4.61461785]
[1737821254976,9.36324529,3338.7,3338.6,46.14943573]
[1737821256688,10.54959587,3339.0,3338.9,0.47922]
[1737821256888,10.54959587,3339.0,3338.9,4.00093035]
[1737821257795,10.54959587,3339.0,3338.9,5.21837005]
[1737821259583,10.54959587,3339.0,3338.9,5.58164158]
[1737821260998,10.54959587,3339.0,3338.9,5.58166308]
[1737821261694,10.54959587,3339.0,3338.9,5.38382102]
[1737821262995,10.54959587,3339.0,3338.9,6.13294625]
[1737821263184,10.54959587,3339.0,3338.9,6.13292566]
[1737821265203,10.54959587,3339.0,3338.9,6.13227853]
[1737821266099,10.54959587,3339.0,3338.9,3.97108401]
[1737821266603,10.54959587,3339.0,3338.9,2.99300065]
[1737821266999,10.54959587,3339.0,3338.9,43.79300065]
[1737821267201,10.54959587,3339.0,3338.9,45.37334515]
[1737821267396,10.54959587,3339.0,3338.9,45.95429381]
[1737821267705,10.54959587,3339.0,3338.9,47.17154535]
[1737821267898,11.72177319,3339.0,3338.9,46.69232535]
[1737821268198,11.72177319,3339.0,3338.9,47.17154535]
[1737821268499,11.72177319,3339.0,3338.9,3.10868688]
[1737821268799,12.20097319,3339.0,3338.9,2.0595645]
[1737821269000,12.20097319,3339.0,3338.9,1.69647154]
[1737821269302,12.20097319,3339.0,3338.9,0.94739367]
[1737821269491,11.72177319,3339.0,3338.9,0.94739367]
[1737821270602,11.72177319,3339.0,3338.9,3.22181798]
[1737821270999,11.72177319,3339.0,3338.9,3.57570903]
[1737821271700,11.72177319,3339.0,3338.9,2.84305747]
[1737821272403,11.72177319,3339.0,3338.9,2.48916642]
[1737821272901,11.72177319,3339.0,3338.9,3.31128708]
[1737821273101,11.72177319,3339.0,3338.9,2.84304891]
[1737821275706,0.5014,3339.2,3339.1,0.47919]
[1737821276496,0.0044923,3339.3,3339.2,0.47918]
[1737821276696,0.0044923,3339.3,3339.2,3.10753487]
[1737821277403,0.0044923,3339.3,3339.2,3.10757322]
[1737821277698,0.0044923,3339.3,3339.2,6.7678037]
[1737821278200,0.04328985,3339.3,3339.2,7.51685903]
[1737821279002,0.04328985,3339.3,3339.2,8.26440466]
[1737821280004,0.04328985,3339.3,3339.2,8.26451183]
[1737821281110,0.04328985,3339.3,3339.2,3.85522602]
[1737821281306,0.04328985,3339.3,3339.2,4.30282126]
[1737821283398,0.04328985,3339.3,3339.2,4.30278857]
[1737821283804,0.04328985,3339.3,3339.2,1.54918426]
[1737821284110,0.04328985,3339.3,3339.2,4.7709402]
[1737821284300,0.04328985,3339.3,3339.2,45.5709402]
[1737821284707,0.04328985,3339.3,3339.2,4.7709402]
[1737821285208,0.04328985,3339.3,3339.2,3.10761128]
[1737821285401,0.04328985,3339.3,3339.2,4.77225075]
[1737821287196,12.8990475,3339.6,3339.2,4.77217601]
[1737821287506,12.8990475,3339.6,3339.5,5.96135431]
[1737821287703,12.8990475,3339.6,3339.5,47.56265097]
[1737821288209,12.8990475,3339.6,3339.5,48.77984744]
[1737821289608,0.0044923,3339.9,3339.8,0.47909]
[1737821289799,0.0044923,3339.9,3339.8,3.10748831]
[1737821290404,0.0044923,3339.9,3339.8,3.5756408]
[1737821291207,0.0044923,3339.9,3339.8,3.57537744]
[1737821291515,0.0044923,3339.9,3339.8,1.30095313]
[1737821291707,0.0044923,3339.9,3339.8,2.04989995]
[1737821292809,0.0044923,3339.9,3339.8,1.69618931]
[1737821293307,0.0044923,3339.9,3339.8,2.04974311]
[1737821293614,0.0044923,3339.9,3339.8,1.69618931]
[1737821294099,0.0044923,3339.9,3339.8,2.04973859]
[1737821294303,0.0044923,3339.9,3339.8,1.69618931]
[1737821294705,0.0044923,3339.9,3339.8,2.04970849]
[1737821295309,0.0044923,3339.9,3339.8,1.69618931]
[1737821295512,0.0044923,3339.9,3339.8,2.04959279]
[1737821295906,0.0044923,3339.9,3339.8,1.30060476]
[1737821297915,0.0044923,3339.9,3339.8,1.3004756]
[1737821299908,0.0044923,3339.9,3339.8,1.30044093]
[1737821301918,0.0044923,3339.9,3339.8,1.30065265]
[1737821303018,0.0044923,3339.9,3339.8,2.04973591]
[1737821305515,12.92848935,3340.5,3340.4,0.479]
[1737821305707,12.92848935,3340.5,3340.4,0.83292041]
[1737821305914,12.92848935,3340.5,3340.4,2.05004595]
[1737821306617,12.92848935,3340.5,3340.4,2.51333338]
[1737821306810,12.92848935,3340.5,3340.4,6.46238805]
[1737821307220,12.92848935,3340.5,3340.4,2.51333338]
[1737821307715,12.92848935,3340.5,3340.4,3.25403577]
[1737821307911,12.92848935,3340.5,3340.4,3.25407208]
[1737821308311,0.00447163,3340.8,3340.4,2.03419165]
[1737821308516,0.00447163,3340.8,3340.7,2.75338431]
[1737821308718,0.00447163,3340.8,3340.7,3.10716299]
[1737821308915,0.00447163,3340.8,3340.7,4.32428853]
[1737821310617,0.00447163,3340.8,3340.7,2.04986422]
[1737821311622,0.00447163,3340.8,3340.7,2.04949606]
[1737821313126,0.00447163,3340.8,3340.7,1.30052301]
[1737821315023,0.00447163,3340.8,3340.7,2.04928872]
[1737821315626,0.00447163,3340.8,3340.7,2.04920949]
[1737821316527,3.21227163,3340.8,3340.3,0.47901]
[1737821316725,3.2078,3340.4,3340.1,0.46685939]
[1737821317032,1.365,3340.3,3340.2,0.47903]
[1737821324429,1.84402,3340.3,3340.2,0.47903]
[1737821324635,1.84402,3340.3,3339.5,0.0044923]
[1737821324636,1.365,3340.3,3339.5,2.27891661]
[1737821324838,0.47904,3340.2,3340.1,0.47904]
[1737821325247,1.365,3340.3,3339.5,2.27891661]
[1737821325448,1.365,3340.3,3340.2,0.47903]
[1737821325947,1.41247653,3340.3,3340.2,0.47903]
[1737821327748,1.365,3340.3,3340.2,0.47903]
[1737821327946,1.365,3340.3,3339.8,3.47212431]
[1737821328142,1.365,3340.3,3340.2,0.47903]
[1737821328343,0.6647,3340.3,3340.2,0.47903]
[1737821338952,1.14372,3340.3,3340.2,0.47903]